fUSD/lending_fUSD_20250108
["ID","MTS","AMOUNT","RATE_DAILY","PERIOD"]
[348110527,1736325031907,-3193.36,9.898e-05,2]
[348110528,1736325031916,-7681.63,9.898e-05,2]
[348110529,1736325031925,-299.99,9.898e-05,2]
[348110530,1736325031935,-150.99,9.898e-05,2]
[348110531,1736325031944,-9088.03,9.898e-05,2]
[348110532,1736325031953,-242.0,9.898e-05,2]
[348110534,1736325031962,-1121.8493,9.898e-05,2]
[348110536,1736325031971,-1000.0,9.898e-05,2]
[348110537,1736325031981,-226.6917,9.9e-05,2]
[348110538,1736325031991,-2549.2202,9.9e-05,2]
[348110539,1736325032000,-11380.78732247,9.9e-05,2]
[348110540,1736325032010,-150.0,9.968e-05,2]
[348110541,1736325032019,-164.36973543,9.973e-05,2]
[348110542,1736325032029,-164.14352729,9.973e-05,2]
[348110543,1736325032038,-775.58181372,9.983e-05,2]
[348110544,1736325032048,-685.4783162,9.996e-05,2]
[348110545,1736325032059,-598.93662339,9.996e-05,2]
[348110546,1736325032071,-500.0,9.996e-05,2]
[348110591,1736325037361,-966.03235376,9.996e-05,2]
[348110592,1736325037634,-448.75470665,9.996e-05,2]
[348110593,1736325037643,-500.0,9.997e-05,2]
[348110594,1736325037652,-733.98667454,9.997e-05,2]
[348110595,1736325037663,-261.22332546,9.997e-05,2]
[348110596,1736325037672,-1495.6,9.997e-05,2]
[348110597,1736325037682,-723.65,9.997e-05,2]
[348110598,1736325037692,-500.0,9.997e-05,2]
[348110599,1736325037704,-500.0,9.997e-05,2]
[348110600,1736325037713,-1265.8,9.997e-05,2]
[348110601,1736325037724,-191.65184394,9.997e-05,2]
[348110602,1736325037734,-500.0,9.997e-05,2]
[348110603,1736325037743,-500.0,9.997e-05,2]
[348110604,1736325037753,-530.04,9.997e-05,2]
[348110605,1736325037762,-500.0,9.997e-05,2]
[348110606,1736325037989,-500.0,9.997e-05,2]
[348110607,1736325038000,-867.58,9.997e-05,2]
[348110608,1736325038010,-500.0,9.997e-05,2]
[348110609,1736325038022,-500.0,9.997e-05,2]
[348110610,1736325038032,-500.9347913,9.997e-05,2]
[348110611,1736325038041,-314.16680941,9.997e-05,2]
[348110612,1736325038050,-500.0,9.997e-05,2]
[348110613,1736325038060,-500.0,9.997e-05,2]
[348110614,1736325038069,-500.0,9.997e-05,2]
[348110615,1736325038078,-500.0,9.997e-05,2]
[348110616,1736325038087,-1089.22,9.997e-05,2]
[348110618,1736325038096,-500.0,9.997e-05,2]
[348110619,1736325038105,-500.0,9.997e-05,2]
[348110620,1736325038114,-1064.46,9.998e-05,2]
[348110621,1736325038123,-601.4,9.998e-05,2]
[348110622,1736325038132,-500.0,9.998e-05,2]
[348110624,1736325038141,-500.0,9.998e-05,2]
[348110626,1736325038150,-500.0,9.998e-05,2]
[348110628,1736325038159,-1771.17,9.998e-05,2]
[348110629,1736325038169,-907.22,9.998e-05,2]
[348110630,1736325038178,-500.0,9.998e-05,2]
[348110631,1736325038191,-500.0,9.998e-05,2]
[348110632,1736325038200,-1957.43,9.998e-05,2]
[348110633,1736325038210,-500.0,9.998e-05,2]
[348110634,1736325038219,-500.0,9.998e-05,2]
[348110635,1736325038229,-500.0,9.998e-05,2]
[348110636,1736325038238,-500.0,9.998e-05,2]
[348110637,1736325038247,-569.2,9.998e-05,2]
[348110638,1736325038257,-375.26,9.998e-05,2]
[348110639,1736325038267,-979.93,9.998e-05,2]
[348110640,1736325038278,-500.0,9.998e-05,2]
[348110641,1736325038287,-506.09748357,9.998e-05,2]
[348110642,1736325038295,-501.02434077,9.998e-05,2]
[348110643,1736325038305,-500.0,9.998e-05,2]
[348110644,1736325038315,-500.0,9.998e-05,2]
[348110645,1736325038325,-508.84862282,9.998e-05,2]
[348110646,1736325038335,-500.0,9.998e-05,2]
[348110647,1736325038344,-615.04723886,9.998e-05,2]
[348110648,1736325038353,-500.0,9.998e-05,2]
[348110649,1736325038363,-501.26796603,9.998e-05,2]
[348110650,1736325038372,-500.0,9.998e-05,2]
[348110651,1736325038383,-500.0,9.998e-05,2]
[348110652,1736325038392,-500.0,9.998e-05,2]
[348110653,1736325038402,-500.0,9.998e-05,2]
[348110654,1736325038412,-500.0,9.998e-05,2]
[348110655,1736325038421,-501.79745958,9.998e-05,2]
[348110656,1736325038430,-530.4,9.998e-05,2]
[348110657,1736325038440,-500.0,9.998e-05,2]
[348110658,1736325038449,-500.0,9.998e-05,2]
[348110659,1736325038459,-500.0,9.998e-05,2]
[348110660,1736325038468,-500.0,9.998e-05,2]
[348110661,1736325038477,-1741.95,9.998e-05,2]
[348110662,1736325038487,-500.0,9.998e-05,2]
[348110663,1736325038496,-500.0,9.998e-05,2]
[348110664,1736325038505,-500.0,9.998e-05,2]
[348110665,1736325038514,-500.0,9.998e-05,2]
[348110666,1736325038525,-501.69799445,9.998e-05,2]
[348110667,1736325038534,-500.0,9.998e-05,2]
[348110668,1736325038543,-500.0,9.998e-05,2]
[348110669,1736325038553,-500.0,9.998e-05,2]
[348110670,1736325038562,-500.0,9.998e-05,2]
[348110671,1736325038571,-500.0,9.998e-05,2]
[348110672,1736325038580,-270.30286241,9.998e-05,2]
[348110673,1736325038589,-500.0,9.998e-05,2]
[348110674,1736325038600,-500.0,9.998e-05,2]
[348110675,1736325038609,-500.0,9.998e-05,2]
[348110676,1736325038618,-500.0,9.998e-05,2]
[348110677,1736325038628,-500.0,9.998e-05,2]
[348110678,1736325038638,-500.0,9.998e-05,2]
[348110679,1736325038648,-500.0,9.998e-05,2]
[348110680,1736325038657,-500.0,9.998e-05,2]
[348110681,1736325038667,-500.0,9.998e-05,2]
[348110682,1736325038676,-500.0,9.998e-05,2]
[348110683,1736325038686,-500.0,9.998e-05,2]
[348110684,1736325038695,-500.0,9.998e-05,2]
[348110685,1736325038705,-500.0,9.998e-05,2]
[348110686,1736325038714,-500.0,9.998e-05,2]
[348110687,1736325038724,-500.0,9.998e-05,2]
[348110688,1736325038733,-500.0,9.998e-05,2]
[348110689,1736325038743,-500.0,9.998e-05,2]
[348110690,1736325038752,-500.0,9.998e-05,2]
[348110691,1736325038761,-500.0,9.998e-05,2]
[348110692,1736325038771,-500.0,9.998e-05,2]
[348110693,1736325038780,-500.0,9.998e-05,2]
[348110694,1736325038790,-537.72,9.998e-05,2]
[348110695,1736325038799,-500.0,9.998e-05,2]
[348110696,1736325038808,-500.0,9.998e-05,2]
[348110697,1736325038817,-500.0,9.998e-05,2]
[348110698,1736325038827,-500.0,9.998e-05,2]
[348110699,1736325038836,-500.0,9.998e-05,2]
[348110700,1736325038845,-500.0,9.998e-05,2]
[348110701,1736325038854,-986.05,9.998e-05,2]
[348110702,1736325038864,-500.0,9.998e-05,2]
[348110703,1736325038873,-538.26,9.998e-05,2]
[348110704,1736325038882,-500.0,9.998e-05,2]
[348110705,1736325038891,-500.0,9.998e-05,2]
[348110706,1736325038901,-500.0,9.998e-05,2]
[348110707,1736325038910,-500.0,9.998e-05,2]
[348110708,1736325038919,-500.0,9.998e-05,2]
[348110709,1736325038930,-500.0,9.998e-05,2]
[348110710,1736325038939,-500.0,9.998e-05,2]
[348110711,1736325038949,-500.0,9.998e-05,2]
[348110712,1736325038958,-500.0,9.998e-05,2]
[348110713,1736325038967,-500.0,9.998e-05,2]
[348110714,1736325038977,-500.0,9.998e-05,2]
[348110715,1736325038987,-500.0,9.998e-05,2]
[348110716,1736325038997,-1040.64,9.998e-05,2]
[348110717,1736325039006,-500.0,9.998e-05,2]
[348110718,1736325039015,-482.48562414,9.998e-05,2]
[348110719,1736325039025,-500.0,9.998e-05,2]
[348110720,1736325039035,-500.0,9.998e-05,2]
[348110721,1736325039044,-500.0,9.998e-05,2]
[348110722,1736325039054,-500.0,9.998e-05,2]
[348110723,1736325039063,-500.0,9.998e-05,2]
[348110724,1736325039073,-500.0,9.998e-05,2]
[348110725,1736325039083,-500.0,9.998e-05,2]
[348110726,1736325039093,-500.0,9.998e-05,2]
[348110727,1736325039103,-500.0,9.998e-05,2]
[348110728,1736325039112,-500.0,9.998e-05,2]
[348110729,1736325039122,-500.0,9.998e-05,2]
[348110730,1736325039132,-430.56682415,9.998e-05,2]
[348110731,1736325039147,-1019.75198005,9.998e-05,2]
[348110732,1736325039159,-285.0111958,9.998e-05,2]
[348110733,1736325039168,-399.2888056,9.998e-05,2]
[348110735,1736325039180,-100.7111944,9.998e-05,2]
[348110736,1736325039193,-500.0,9.998e-05,2]
[348110737,1736325039203,-694.33,9.998e-05,2]
[348110738,1736325039213,-500.0,9.998e-05,2]
[348110739,1736325039222,-500.0,9.998e-05,2]
[348110740,1736325039232,-500.0,9.998e-05,2]
[348110741,1736325039241,-500.0,9.998e-05,2]
[348110742,1736325039251,-500.0,9.998e-05,2]
[348110743,1736325039262,-500.0,9.998e-05,2]
[348110744,1736325039272,-500.0,9.998e-05,2]
[348110745,1736325039281,-500.0,9.998e-05,2]
[348110747,1736325039291,-3247.43,9.998e-05,2]
[348110748,1736325039301,-500.0,9.998e-05,2]
[348110749,1736325039310,-500.0,9.998e-05,2]
[348110750,1736325039319,-500.0,9.998e-05,2]
[348110751,1736325039329,-500.0,9.998e-05,2]
[348110752,1736325039339,-500.0,9.998e-05,2]
[348110753,1736325039348,-500.0,9.998e-05,2]
[348110754,1736325039357,-500.0,9.998e-05,2]
[348110755,1736325039367,-500.0,9.998e-05,2]
[348110756,1736325039376,-500.0,9.998e-05,2]
[348110757,1736325039386,-500.0,9.998e-05,2]
[348110758,1736325039396,-553.78,9.998e-05,2]
[348110759,1736325039406,-500.0,9.998e-05,2]
[348110760,1736325039415,-500.0,9.998e-05,2]
[348110761,1736325039425,-500.0,9.998e-05,2]
[348110762,1736325039435,-589.47,9.998e-05,2]
[348110763,1736325039444,-500.0,9.998e-05,2]
[348110764,1736325039453,-500.0,9.998e-05,2]
[348110765,1736325039463,-500.0,9.998e-05,2]
[348110766,1736325039473,-507.4,9.998e-05,2]
[348110767,1736325039482,-500.0,9.998e-05,2]
[348110768,1736325039491,-500.0,9.998e-05,2]
[348110769,1736325039501,-500.0,9.998e-05,2]
[348110770,1736325039510,-646.23,9.998e-05,2]
[348110771,1736325039521,-500.0,9.998e-05,2]
[348110772,1736325039531,-500.0,9.998e-05,2]
[348110773,1736325039541,-500.0,9.998e-05,2]
[348110774,1736325039550,-500.0,9.998e-05,2]
[348110775,1736325039560,-500.0,9.998e-05,2]
[348110776,1736325039570,-500.0,9.998e-05,2]
[348110777,1736325039579,-500.0,9.998e-05,2]
[348110778,1736325039590,-500.0,9.998e-05,2]
[348110779,1736325039599,-500.0,9.998e-05,2]
[348110780,1736325039608,-500.0,9.998e-05,2]
[348110781,1736325039618,-14109.16340613,9.998e-05,2]
[348110782,1736325039631,-5510.31659387,9.998e-05,2]
[348110783,1736325039640,-500.0,9.998e-05,2]
[348110784,1736325039650,-500.0,9.998e-05,2]
[348110785,1736325039659,-1872.61,9.998e-05,2]
[348110786,1736325039669,-500.0,9.998e-05,2]
[348110787,1736325039678,-500.0,9.998e-05,2]
[348110788,1736325039688,-500.0,9.998e-05,2]
[348110789,1736325039697,-500.0,9.998e-05,2]
[348110790,1736325039707,-500.0,9.998e-05,2]
[348110791,1736325039716,-1193.41,9.998e-05,2]
[348110792,1736325039726,-563.98,9.998e-05,2]
[348110793,1736325039735,-500.0,9.998e-05,2]
[348110794,1736325039745,-2252.74337875,9.998e-05,2]
[348110795,1736325039757,-936.30662125,9.998e-05,2]
[348110796,1736325039767,-500.0,9.998e-05,2]
[348110797,1736325039777,-500.0,9.998e-05,2]
[348110798,1736325039787,-500.0,9.998e-05,2]
[348110799,1736325039797,-500.0,9.998e-05,2]
[348110800,1736325039806,-500.0,9.998e-05,2]
[348110801,1736325039816,-500.0,9.998e-05,2]
[348110802,1736325039825,-500.0,9.998e-05,2]
[348110803,1736325039835,-500.0,9.998e-05,2]
[348110804,1736325039845,-500.0,9.998e-05,2]
[348110805,1736325039855,-533.69337875,9.998e-05,2]
[348110806,1736325039868,-43.49662125,9.998e-05,2]
[348110807,1736325039877,-1483.69,9.998e-05,2]
[348110808,1736325039887,-163.27247174,9.998e-05,2]
[348110809,1736325039958,-1346.51752826,9.998e-05,2]
[348110810,1736325039971,-500.0,9.998e-05,2]
[348110811,1736325039983,-500.0,9.998e-05,2]
[348110812,1736325039996,-1548.85,9.998e-05,2]
[348110813,1736325040008,-816.93,9.998e-05,2]
[348110814,1736325040022,-500.0,9.998e-05,2]
[348110815,1736325040033,-500.0,9.998e-05,2]
[348110816,1736325040046,-500.0,9.998e-05,2]
[348110817,1736325040057,-1246.72,9.998e-05,2]
[348110818,1736325040067,-500.0,9.998e-05,2]
[348110819,1736325040078,-500.0,9.998e-05,2]
[348110820,1736325040091,-500.0,9.998e-05,2]
[348110821,1736325040103,-906.52,9.998e-05,2]
[348110822,1736325040115,-500.0,9.998e-05,2]
[348110823,1736325040127,-500.0,9.998e-05,2]
[348110824,1736325040139,-500.0,9.998e-05,2]
[348110825,1736325040151,-500.0,9.998e-05,2]
[348110826,1736325040165,-2463.0,9.998e-05,2]
[348110827,1736325040177,-500.0,9.998e-05,2]
[348110828,1736325040192,-500.0,9.998e-05,2]
[348110829,1736325040205,-500.0,9.998e-05,2]
[348110830,1736325040217,-500.0,9.998e-05,2]
[348110831,1736325040229,-500.0,9.998e-05,2]
[348110832,1736325040242,-719.65,9.998e-05,2]
[348110833,1736325040258,-500.0,9.998e-05,2]
[348110834,1736325040272,-1457.33,9.998e-05,2]
[348110835,1736325040284,-500.0,9.998e-05,2]
[348110836,1736325040296,-500.0,9.998e-05,2]
[348110837,1736325040308,-500.0,9.998e-05,2]
[348110838,1736325040320,-1000.0,9.998e-05,2]
[348110839,1736325040332,-500.0,9.998e-05,2]
[348110840,1736325040344,-500.0,9.998e-05,2]
[348110841,1736325040355,-1183.43,9.998e-05,2]
[348110842,1736325040368,-445.32271753,9.998e-05,2]
[348110843,1736325040383,-54.67728247,9.998e-05,2]
[348110844,1736325040394,-278.69583944,9.998e-05,2]
[348110845,1736325040409,-4532.56127866,9.998e-05,2]
[348110846,1736325040419,-500.0,9.998e-05,2]
[348110847,1736325040431,-659.96,9.998e-05,2]
[348110848,1736325040442,-646.08,9.998e-05,2]
[348110849,1736325040453,-965.86,9.998e-05,2]
[348110850,1736325040466,-500.0,9.998e-05,2]
[348110851,1736325040480,-500.0,9.998e-05,2]
[348110852,1736325040490,-500.0,9.998e-05,2]
[348110853,1736325040500,-251.66691208,9.998e-05,2]
[348110854,1736325040512,-806.80308792,9.998e-05,2]
[348110855,1736325040522,-500.0,9.998e-05,2]
[348110856,1736325040534,-500.0,9.998e-05,2]
[348110857,1736325040546,-770.78,9.998e-05,2]
[348110858,1736325040557,-904.91690708,9.998e-05,2]
[348110859,1736325040571,-47.06309292,9.998e-05,2]
[348110860,1736325040581,-500.0,9.998e-05,2]
[348110861,1736325040591,-500.0,9.998e-05,2]
[348110862,1736325040601,-500.0,9.998e-05,2]
[348110863,1736325040616,-500.0,9.998e-05,2]
[348110864,1736325040626,-500.0,9.998e-05,2]
[348110865,1736325040637,-500.0,9.998e-05,2]
[348110866,1736325040649,-269.33759037,9.998e-05,2]
[348110867,1736325040662,-230.66240963,9.998e-05,2]
[348110868,1736325040673,-229.73623971,9.998e-05,2]
[348110869,1736325040684,-500.0,9.998e-05,2]
[348110870,1736325040695,-41.89335554,9.998e-05,2]
[348110871,1736325040707,-458.10664446,9.998e-05,2]
[348110872,1736325040718,-500.0,9.998e-05,2]
[348110873,1736325040729,-45.79329969,9.998e-05,2]
[348110874,1736325040759,-454.20670031,9.998e-05,2]
[348110875,1736325040772,-1404.318473,9.998e-05,2]
[348110876,1736325040782,-500.0,9.998e-05,2]
[348110877,1736325040793,-1401.3,9.998e-05,2]
[348110878,1736325040804,-156.273653,9.998e-05,2]
[348110879,1736325040814,-2715.77,9.998e-05,2]
[348110880,1736325040825,-500.0,9.998e-05,2]
[348110881,1736325040836,-500.0,9.998e-05,2]
[348110882,1736325040847,-500.0,9.998e-05,2]
[348110883,1736325040857,-2134.63,9.998e-05,2]
[348110884,1736325040868,-500.0,9.998e-05,2]
[348110885,1736325040880,-697.05,9.998e-05,2]
[348110886,1736325040891,-500.0,9.998e-05,2]
[348110887,1736325040902,-742.13,9.998e-05,2]
[348110888,1736325040913,-1058.034769,9.998e-05,2]
[348110889,1736325040924,-500.0,9.998e-05,2]
[348110890,1736325040934,-500.0,9.998e-05,2]
[348110891,1736325040944,-157.68863,9.998e-05,2]
[348110892,1736325040956,-500.0,9.998e-05,2]
[348110893,1736325040966,-500.0,9.998e-05,2]
[348110894,1736325040977,-156.364715,9.998e-05,2]
[348110895,1736325040988,-500.0,9.998e-05,2]
[348110896,1736325040998,-500.0,9.998e-05,2]
[348110897,1736325041009,-500.0,9.998e-05,2]
[348110898,1736325041020,-2755.33,9.998e-05,2]
[348110899,1736325041031,-12609.4865574,9.998e-05,2]
[348110900,1736325041041,-500.0,9.998e-05,2]
[348110901,1736325041053,-500.0,9.999e-05,2]
[348110902,1736325041064,-500.0,9.999e-05,2]
[348110903,1736325041075,-500.0,9.999e-05,2]
[348110904,1736325041087,-441.1756276,9.999e-05,2]
[348110905,1736325041098,-500.0,9.999e-05,2]
[348110906,1736325041108,-500.0,9.999e-05,2]
[348110907,1736325041119,-500.0,9.999e-05,2]
[348110908,1736325041130,-500.0,9.999e-05,2]
[348110909,1736325041142,-500.0,9.999e-05,2]
[348110910,1736325041153,-500.0,9.999e-05,2]
[348110911,1736325041164,-500.0,9.999e-05,2]
[348110912,1736325041175,-500.0,9.999e-05,2]
[348110913,1736325041189,-500.0,9.999e-05,2]
[348110914,1736325041201,-502.28672235,9.999e-05,2]
[348110915,1736325041212,-504.40335388,9.999e-05,2]
[348110916,1736325041223,-500.0,9.999e-05,2]
[348110917,1736325041235,-500.0,9.999e-05,2]
[348110918,1736325041246,-500.0,9.999e-05,2]
[348110919,1736325041258,-502.75513148,9.999e-05,2]
[348110920,1736325041269,-504.89196118,9.999e-05,2]
[348110921,1736325041282,-502.23326192,9.999e-05,2]
[348110922,1736325041295,-502.39001964,9.999e-05,2]
[348110923,1736325041308,-500.65601349,9.999e-05,2]
[348110924,1736325041319,-500.95484098,9.999e-05,2]
[348110925,1736325041330,-502.07393745,9.999e-05,2]
[348110926,1736325041341,-503.26240186,9.999e-05,2]
[348110927,1736325041353,-504.88432222,9.999e-05,2]
[348110928,1736325041364,-500.0,9.999e-05,2]
[348110929,1736325041375,-604.84194033,9.999e-05,2]
[348110930,1736325041387,-504.4356881,9.999e-05,2]
[348110931,1736325041398,-501.15720356,9.999e-05,2]
[348110932,1736325041409,-503.53300013,9.999e-05,2]
[348110933,1736325041420,-502.00824385,9.999e-05,2]
[348110934,1736325041431,-500.0,9.999e-05,2]
[348110935,1736325041443,-500.0,9.999e-05,2]
[348110936,1736325041454,-500.0,9.999e-05,2]
[348110937,1736325041465,-503.5772262,9.999e-05,2]
[348110938,1736325041476,-500.0,9.999e-05,2]
[348110939,1736325041488,-501.98908172,9.999e-05,2]
[348110940,1736325041499,-501.86860921,9.999e-05,2]
[348110941,1736325041510,-503.48153383,9.999e-05,2]
[348110942,1736325041522,-502.66734371,9.999e-05,2]
[348110943,1736325041534,-500.0,9.999e-05,2]
[348110944,1736325041545,-502.88937814,9.999e-05,2]
[348110945,1736325041556,-500.0,9.999e-05,2]
[348110946,1736325041567,-507.71131491,9.999e-05,2]
[348110947,1736325041578,-503.3699436,9.999e-05,2]
[348110948,1736325041588,-501.51331069,9.999e-05,2]
[348110949,1736325041600,-500.0,9.999e-05,2]
[348110950,1736325041612,-500.28063615,9.999e-05,2]
[348110951,1736325041624,-501.19275664,9.999e-05,2]
[348110952,1736325041636,-500.0,9.999e-05,2]
[348110953,1736325041647,-500.0,9.999e-05,2]
[348110954,1736325041659,-500.0,9.999e-05,2]
[348110955,1736325041670,-500.0,9.999e-05,2]
[348110956,1736325041682,-500.0,9.999e-05,2]
[348110957,1736325041695,-500.0,9.999e-05,2]
[348110958,1736325041706,-500.0,9.999e-05,2]
[348110959,1736325041717,-500.0,9.999e-05,2]
[348110960,1736325041727,-585.60557493,9.999e-05,2]
[348110961,1736325041738,-502.10584307,9.999e-05,2]
[348110962,1736325041750,-590.58260104,9.999e-05,2]
[348110963,1736325041761,-504.78578681,9.999e-05,2]
[348110964,1736325041771,-502.12124193,9.999e-05,2]
[348110965,1736325041786,-464.54187545,9.999e-05,2]
[348110966,1736325041798,-502.35277545,9.999e-05,2]
[348110967,1736325041809,-269.13914553,9.999e-05,2]
[348110968,1736325041821,-500.0,9.999e-05,2]
[348110969,1736325041832,-500.0,9.999e-05,2]
[348110970,1736325041843,-500.0,9.999e-05,2]
[348110971,1736325041854,-500.0,9.999e-05,2]
[348110972,1736325041865,-502.19368021,9.999e-05,2]
[348110973,1736325041876,-502.12435656,9.999e-05,2]
[348110974,1736325041888,-502.09598954,9.999e-05,2]
[348110975,1736325041899,-501.5627085,9.999e-05,2]
[348110976,1736325041911,-501.54633416,9.999e-05,2]
[348110977,1736325041922,-501.19377109,9.999e-05,2]
[348110978,1736325041933,-501.59265713,9.999e-05,2]
[348110979,1736325041945,-500.0,9.999e-05,2]
[348110980,1736325041957,-501.24135996,9.999e-05,2]
[348110981,1736325041968,-500.0,9.999e-05,2]
[348110982,1736325041980,-500.0,9.999e-05,2]
[348110983,1736325041991,-500.86825527,9.999e-05,2]
[348110984,1736325042002,-500.0,9.999e-05,2]
[348110985,1736325042013,-253.08830021,9.999e-05,2]
[348110986,1736325042024,-500.0,9.999e-05,2]
[348110987,1736325042036,-500.0,9.999e-05,2]
[348110988,1736325042046,-500.0,9.999e-05,2]
[348110989,1736325042057,-500.0,9.999e-05,2]
[348110990,1736325042069,-500.0,9.999e-05,2]
[348110991,1736325042079,-327.8160687,9.999e-05,2]
[348110992,1736325042089,-501.29720124,9.999e-05,2]
[348110993,1736325042099,-501.44464057,9.999e-05,2]
[348110994,1736325042109,-506.80296002,9.999e-05,2]
[348110995,1736325042119,-500.0,9.999e-05,2]
[348110996,1736325042129,-209.37,9.999e-05,2]
[348110997,1736325042139,-500.0,9.999e-05,2]
[348111003,1736325042404,-500.0,9.999e-05,2]
[348111004,1736325042428,-500.0,9.999e-05,2]
[348111005,1736325042441,-500.0,9.999e-05,2]
[348111006,1736325042451,-500.0,9.999e-05,2]
[348111007,1736325042460,-500.0,9.999e-05,2]
[348111008,1736325042470,-500.0,9.999e-05,2]
[348111009,1736325042479,-500.0,9.999e-05,2]
[348111010,1736325042489,-500.0,9.999e-05,2]
[348111011,1736325042499,-285.5120806,9.999e-05,2]
[348111012,1736325042509,-1915.73,9.999e-05,2]
[348111013,1736325042518,-500.0,9.999e-05,2]
[348111014,1736325042528,-500.0,9.999e-05,2]
[348111015,1736325042539,-500.0,9.999e-05,2]
[348111016,1736325042558,-500.0,9.999e-05,2]
[348111017,1736325042568,-500.0,9.999e-05,2]
[348111018,1736325042578,-500.0,9.999e-05,2]
[348111019,1736325042587,-505.58,9.999e-05,2]
[348111021,1736325042596,-500.0,9.999e-05,2]
[348111023,1736325042606,-500.0,9.999e-05,2]
[348111024,1736325042615,-500.0,9.999e-05,2]
[348111026,1736325042625,-500.0,9.999e-05,2]
[348111027,1736325042634,-500.0,9.999e-05,2]
[348111028,1736325042643,-19619.48,9.999e-05,2]
[348111029,1736325042653,-19619.48,9.999e-05,2]
[348111030,1736325042662,-500.0,9.999e-05,2]
[348111031,1736325042671,-19619.48,9.999e-05,2]
[348111032,1736325042681,-19619.48,9.999e-05,2]
[348111033,1736325042691,-19619.48,9.999e-05,2]
[348111034,1736325042700,-19619.48,9.999e-05,2]
[348111035,1736325042709,-19619.48,9.999e-05,2]
[348111036,1736325042719,-500.0,9.999e-05,2]
[348111037,1736325042728,-500.0,9.999e-05,2]
[348111038,1736325042737,-157.54953626,9.999e-05,2]
[348111039,1736325042747,-500.0,9.999e-05,2]
[348111040,1736325042756,-500.0,9.999e-05,2]
[348111041,1736325042765,-500.0,9.999e-05,2]
[348111043,1736325042776,-500.0,9.999e-05,2]
[348111044,1736325042785,-500.0,9.999e-05,2]
[348111045,1736325042795,-500.0,9.999e-05,2]
[348111046,1736325042804,-500.0,9.999e-05,2]
[348111047,1736325042814,-500.0,9.999e-05,2]
[348111048,1736325042825,-530.93,9.999e-05,2]
[348111049,1736325042834,-807.11,9.999e-05,2]
[348111050,1736325042843,-500.0,9.999e-05,2]
[348111051,1736325042853,-1205.64,9.999e-05,2]
[348111052,1736325042863,-500.0,9.999e-05,2]
[348111053,1736325042872,-500.0,9.999e-05,2]
[348111054,1736325042883,-810.78,9.999e-05,2]
[348111056,1736325042892,-500.0,9.999e-05,2]
[348111057,1736325042902,-500.0,9.999e-05,2]
[348111058,1736325042911,-500.0,9.999e-05,2]
[348111059,1736325042921,-500.0,9.999e-05,2]
[348111060,1736325042930,-500.0,9.999e-05,2]
[348111061,1736325042940,-549.09,9.999e-05,2]
[348111062,1736325042949,-500.0,9.999e-05,2]
[348111063,1736325042958,-500.0,9.999e-05,2]
[348111064,1736325042968,-500.0,9.999e-05,2]
[348111065,1736325042977,-500.0,9.999e-05,2]
[348111066,1736325042987,-500.0,9.999e-05,2]
[348111067,1736325042997,-2054.36,9.999e-05,2]
[348111068,1736325043006,-500.0,9.999e-05,2]
[348111069,1736325043016,-500.0,9.999e-05,2]
[348111070,1736325043026,-803351.08843271,0.0001,2]
[348111071,1736325043035,-306.78805461,0.0001,2]
[348111072,1736325043044,-23155.97685335,0.0001,2]
[348111073,1736325043054,-6836.20910343,0.0001,4]
[348111074,1736325043063,-1951.72477578,0.0001,4]
[348111075,1736325043073,-337684.74962153,0.0001,2]
[348111076,1736325043083,-1541.44199914,0.0001,2]
[348111077,1736325043093,-2000.0,0.0001,2]
[348111078,1736325043102,-200.0,0.0001,2]
[348111079,1736325043112,-416.65,0.0001,2]
[348111080,1736325043121,-200.0,0.0001,2]
[348111081,1736325043131,-775.58181378,0.0001,2]
[348111082,1736325043141,-184.03,0.0001,2]
[348111083,1736325043150,-602222.97716752,0.0001,2]
[348111084,1736325043159,-3000.0,0.0001,2]
[348111085,1736325043169,-2651185.67322881,0.0001,2]
[348111086,1736325043178,-101332.3617015,0.0001,2]
[348111087,1736325043192,-35268.38065008,0.0001,2]
[348111088,1736325043202,-8033.87572601,0.0001,2]